bitfinex/quotes_ETHUSD_20260129
["timestamp","ask_amount","ask_price","bid_price","bid_amount"]
[1769724208336,0.49570976,2820.8,2820.3,0.002]
[1769724209401,1.38198688,2820.8,2820.3,0.002]
[1769724210628,9.37600977,2820.8,2820.3,0.002]
[1769724212104,0.49570976,2820.8,2820.3,7.88581852]
[1769724212322,0.88626045,2820.9,2820.3,7.88581852]
[1769724214407,0.001,2820.6,2820.3,7.88581852]
[1769724217144,0.001,2820.6,2820.3,0.002]
[1769724219731,0.001,2820.6,2820.4,7.94369314]
[1769724220346,0.001,2820.6,2820.3,0.002]
[1769724227063,0.001,2820.6,2820.5,0.002]
[1769724229544,0.88621056,2821.1,2820.5,0.002]
[1769724229870,0.001,2821.2,2820.5,7.94569314]
[1769724231060,0.001,2821.2,2820.7,7.94369314]
[1769724234010,0.001,2821.2,2820.8,8.82996653]
[1769724238495,0.001,2821.0,2820.8,8.82996653]
[1769724238685,0.001,2821.0,2820.9,1.23751526]
[1769724239666,0.001,2821.0,2820.9,7.79555431]
[1769724242768,0.001,2821.0,2820.9,8.68179628]
[1769724242972,0.001,2821.0,2820.9,7.79555431]
[1769724244302,0.001,2821.0,2820.9,8.68179628]
[1769724245002,0.001,2821.0,2820.9,7.79555431]
[1769724245198,0.001,2821.0,2820.9,9.90449519]
[1769724246701,0.001,2821.0,2820.9,9.01825322]
[1769724248093,0.001,2821.0,2820.9,1.22269891]
[1769724248928,0.001,2821.0,2820.9,2.10894088]
[1769724250323,0.001,2821.0,2820.9,9.90449519]
[1769724250641,0.001,2821.5,2820.9,2.10894088]
[1769724250834,8.7171044,2822.5,2821.4,7.79555431]
[1769724252923,0.001,2822.4,2821.6,7.79555431]
[1769724253741,0.30758788,2823.0,2821.6,7.79555431]
[1769724253920,0.001,2822.9,2822.1,7.79555431]
[1769724254547,0.30758788,2823.0,2822.3,7.79555431]
[1769724254845,0.30858788,2823.0,2822.4,0.88577097]
[1769724255057,0.30858788,2823.0,2822.5,7.79555431]
[1769724257333,0.30758788,2823.0,2822.6,0.88570821]
[1769724257535,0.30758788,2823.0,2822.6,2.10813226]
[1769724258157,0.30758788,2823.0,2822.6,9.90368657]
[1769724258746,0.30758788,2823.0,2822.7,7.79555431]
[1769724259058,1e-08,2823.0,2822.7,7.79555431]
[1769724259573,1e-08,2823.0,2822.8,0.88564545]
[1769724259861,1e-08,2823.0,2822.9,0.86811998]
[1769724263348,1e-08,2823.0,2822.8,0.8856411]
[1769724263888,0.00100001,2823.0,2822.8,0.8856411]
[1769724265256,0.00100001,2823.0,2822.7,0.88567683]
[1769724266552,0.00100001,2823.0,2822.6,2.1081123]
[1769724272362,6.17717559,2824.5,2822.8,8.02305005]
[1769724272496,8.17478503,2824.3,2823.5,8.90847593]
[1769724272852,8.17478503,2824.3,2823.4,0.88544382]
[1769724273050,9.0807792,2824.3,2823.4,10.15352729]
[1769724273399,9.96595637,2824.3,2823.4,10.15352729]
[1769724273601,8.17478503,2824.8,2823.8,8.02305005]
[1769724275098,0.88501014,2824.9,2823.9,0.88530047]
[1769724275099,8.92070739,2824.7,2823.9,0.88530047]
[1769724278505,8.03565766,2824.9,2824.0,8.30414848]
[1769724278709,8.03565766,2824.9,2824.1,9.22309338]
[1769724280242,8.92065893,2824.9,2824.1,10.10830272]
[1769724280622,8.92064704,2824.9,2824.1,10.10830272]
[1769724281048,8.03565766,2824.8,2823.7,3.54137427]
[1769724281219,8.03565766,2824.8,2823.9,0.88528669]
[1769724281420,8.03565766,2824.8,2824.1,0.88523183]
[1769724283872,8.03565766,2824.8,2823.8,8.30414848]
[1769724284170,8.92068021,2824.8,2823.8,8.30414848]
[1769724284464,8.92068021,2824.8,2823.9,0.91895117]
[1769724285857,8.03665766,2824.6,2824.0,0.88526912]
[1769724289796,0.001,2824.6,2824.0,0.88526912]
[1769724290186,14.21283325,2824.3,2823.9,0.91895117]
[1769724290392,8.03565766,2824.2,2823.7,0.88536313]
[1769724290750,8.03565766,2824.2,2823.8,0.88533018]
[1769724291381,1.42128332,2824.3,2823.7,3.54142355]
[1769724291584,8.03565766,2824.5,2823.7,3.54142355]
[1769724291783,8.92077745,2824.5,2823.7,3.54142355]
[1769724292385,8.03565766,2824.5,2823.7,3.54142355]
[1769724292690,8.03565766,2824.5,2823.7,11.84557203]
[1769724292984,8.92077165,2824.5,2823.7,11.84557203]
[1769724293176,0.89217717,2824.4,2823.7,11.84557203]
[1769724294376,9.81297863,2824.4,2823.7,0.88536317]
[1769724294684,9.81297863,2824.4,2823.5,0.88540832]
[1769724294897,8.03565766,2824.2,2823.6,0.88539194]
[1769724295214,8.03565766,2824.2,2823.7,0.8853587]
[1769724297823,8.03565766,2824.2,2823.9,0.002]
[1769724299988,8.52156393,2824.4,2823.9,0.002]
[1769724300191,1.778328,2824.4,2823.9,0.002]
[1769724300407,0.89317717,2824.4,2823.9,0.002]
[1769724300722,0.001,2824.4,2823.9,7.44533528]
[1769724302112,0.001,2824.4,2824.1,7.44333528]
[1769724303778,0.001,2824.4,2824.0,0.88526912]
[1769724303981,0.001,2824.4,2824.0,8.3286044]
[1769724304918,0.001,2824.4,2824.0,0.88526912]
[1769724306139,0.001,2824.4,2824.0,8.77145145]
[1769724307498,7.62938676,2824.4,2823.9,0.002]
[1769724309830,8.51453975,2824.4,2823.9,0.002]
[1769724310401,7.62938676,2824.4,2823.9,0.002]
[1769724310715,0.001,2824.2,2823.9,0.002]
[1769724316745,0.001,2824.2,2823.5,0.88542588]
[1769724316746,0.76393868,2824.2,2823.5,0.88542588]
[1769724317249,7.62838676,2824.0,2823.2,0.88551794]
[1769724317543,7.62838676,2824.0,2823.1,0.88553721]
[1769724321251,8.51368723,2823.9,2823.1,0.88553721]
[1769724322850,8.51368723,2823.9,2823.3,0.002]
[1769724323047,1.20548801,2823.8,2823.3,0.002]
[1769724323821,7.62838676,2823.4,2823.0,0.002]
[1769724324059,7.62838676,2823.4,2822.8,0.002]
[1769724330227,7.62838676,2823.4,2822.5,0.88771879]
[1769724330429,7.29998823,2823.2,2822.5,0.88771879]
[1769724331472,7.29998823,2823.2,2822.5,0.002]
[1769724335561,7.29998823,2823.2,2822.7,0.002]
[1769724336235,0.58178448,2823.3,2822.7,6.57221184]
[1769724336468,3.54097601,2824.1,2822.7,6.57221184]
[1769724336673,11.20259327,2824.1,2822.7,6.57221184]
[1769724337051,6.91961726,2824.0,2822.7,6.57221184]
[1769724338478,0.88530047,2823.9,2822.9,6.57021184]
[1769724339375,6.91961726,2823.8,2822.9,6.57021184]
[1769724339567,1.39684727,2823.7,2822.9,6.57021184]
[1769724340573,1.39684727,2823.7,2822.9,7.45581915]
[1769724341274,1.39684727,2823.7,2822.9,6.57021184]
[1769724342170,1.39684727,2823.7,2822.9,7.45582487]
[1769724347183,0.001,2823.5,2822.9,7.45582487]
[1769724357795,0.001,2823.5,2822.9,0.88561303]
[1769724358800,0.001,2823.3,2822.9,0.88561303]
[1769724360597,0.001,2823.3,2822.8,0.8856282]
[1769724360799,6.16355492,2823.1,2822.5,0.002]
[1769724360991,7.00290414,2823.0,2822.1,7.13948926]
[1769724361202,7.00290414,2823.0,2822.1,0.88584727]
[1769724361403,7.00290414,2823.0,2822.2,0.88581779]
[1769724361563,7.00290414,2823.0,2822.1,0.88586513]
[1769724361564,7.97245936,2822.9,2822.1,0.88586513]
[1769724361990,7.08683906,2822.9,2822.1,0.88586513]
[1769724362190,0.001,2823.3,2822.5,6.25364006]
[1769724364072,6.38754865,2823.3,2822.6,0.88570821]
[1769724370687,6.17005769,2823.1,2822.2,0.8858133]
[1769724370881,6.38654865,2823.0,2822.2,0.8858133]
[1769724371204,6.38654865,2823.0,2822.2,0.88481533]
[1769724371409,7.02520352,2822.9,2822.2,0.88481533]
[1769724371809,7.02520352,2822.9,2822.5,0.002]
[1769724372791,7.91082707,2822.9,2822.5,0.002]
[1769724374120,6.38654865,2822.7,2821.9,0.00100101]
[1769724376426,7.27225539,2822.7,2821.9,0.00100101]
[1769724381692,6.38654865,2822.4,2821.9,0.00100101]
[1769724383542,6.38654865,2822.4,2822.1,0.001]
[1769724383840,6.38654865,2822.4,2821.9,3.03e-06]
[1769724384042,0.72722921,2822.3,2821.9,6.25364309]
[1769724384244,8.01423998,2822.7,2821.9,6.25364309]
[1769724388617,7.27223998,2822.7,2821.9,7.13956702]
[1769724388817,8.01423998,2822.7,2821.9,6.25364309]
[1769724389036,8.01423998,2822.7,2821.9,7.13956143]
[1769724389312,0.91595563,2822.6,2821.9,7.13956143]
[1769724389515,0.88561773,2822.9,2821.9,7.13956143]
[1769724390947,7.01956862,2823.0,2821.9,7.13956143]
[1769724391166,0.88657922,2823.1,2821.9,7.13956143]
[1769724392734,6.13398591,2823.0,2821.9,7.13956143]
[1769724393032,6.13398591,2822.8,2821.9,7.13956143]
[1769724397590,0.88661609,2822.9,2821.9,7.13956143]
[1769724398164,0.001,2822.9,2821.9,7.13956143]
[1769724406979,0.001,2822.7,2821.9,7.13956143]
[1769724414988,0.001,2822.9,2822.4,5.88400485]
[1769724415174,0.001,2822.9,2822.5,7.0894111]
[1769724415971,0.001,2822.9,2822.6,0.88570821]
[1769724418494,0.001,2822.9,2822.6,6.65481396]
[1769724418820,0.001,2823.3,2822.8,5.76910575]
[1769724418991,0.88528481,2824.0,2822.7,5.76910575]
[1769724418992,5.96557443,2824.0,2822.7,5.76910575]
[1769724419163,6.03345339,2824.0,2822.9,5.76910575]
[1769724420094,6.03345339,2823.8,2822.7,5.76910575]
[1769724420274,5.96557443,2823.5,2822.7,5.76910575]
[1769724420664,5.96557443,2823.5,2822.8,0.88564545]
[1769724422091,5.96557443,2823.7,2822.8,0.88564545]
[1769724422413,6.57001977,2823.7,2822.8,2.25963694]
[1769724423883,6.03445339,2823.6,2822.8,2.25963694]
[1769724424423,6.03345339,2823.4,2822.5,0.88572335]
[1769724425117,6.03345339,2823.4,2822.4,6.65485255]
[1769724425282,5.96657443,2823.3,2822.4,6.65485255]
[1769724425607,0.60344534,2823.2,2822.5,6.65484286]
[1769724425807,0.001,2823.2,2822.5,6.65484286]
[1769724426503,0.001,2823.2,2822.5,5.76910575]
[1769724427212,5.96657443,2823.2,2822.4,0.88576853]
[1769724427405,0.001,2823.1,2822.4,0.88576853]
[1769724430907,0.001,2823.0,2822.3,6.654896]
[1769724431103,0.001,2823.0,2822.6,0.002]
[1769724432928,5.96657443,2823.0,2822.6,0.002]
[1769724437420,5.96557443,2823.0,2822.6,0.002]
[1769724437925,0.001,2822.9,2822.6,0.002]
[1769724441725,0.001,2822.9,2822.6,5.77110575]
[1769724441930,0.001,2822.9,2822.6,6.34841633]
[1769724443026,0.88552265,2823.2,2822.6,6.34841633]
[1769724443224,0.001,2823.1,2822.6,5.77110575]
[1769724443525,0.88648861,2823.3,2822.6,5.77110575]
[1769724443856,0.001,2823.2,2822.6,0.002]
[1769724444028,1.11459166,2823.2,2822.6,0.002]
[1769724444645,0.001,2823.1,2822.6,0.002]
[1769724449755,0.001,2823.0,2822.6,0.002]
[1769724450555,0.001,2823.0,2822.6,0.001]
[1769724450759,0.001,2823.0,2822.6,2.03e-06]
[1769724450941,0.79756927,2823.0,2822.6,2.03e-06]
[1769724451914,5.8483576,2822.9,2822.4,0.001]
[1769724452109,5.8483576,2822.9,2822.0,6.88973102]
[1769724453418,5.8483576,2822.9,2822.1,6.89170405]
[1769724453628,0.001,2822.8,2822.3,6.00584504]
[1769724453942,0.001,2823.0,2822.3,6.00584504]
[1769724454239,6.62606586,2823.2,2822.3,6.00584504]
[1769724454438,1.02459411,2823.1,2822.8,0.001]
[1769724454612,1.02459411,2823.1,2822.5,0.002]
[1769724456314,0.001,2823.0,2822.5,5.95910251]
[1769724458447,0.001,2823.0,2822.5,0.002]
[1769724458647,5.74054589,2823.0,2822.5,0.002]
[1769724458868,0.58084249,2822.9,2822.5,0.002]
[1769724459551,0.001,2822.8,2822.5,0.001]
[1769724460319,0.001,2822.7,2822.1,5.95610555]
[1769724465357,0.58084249,2822.9,2822.1,5.95610555]
[1769724465533,0.001,2822.8,2822.1,5.95610555]
[1769724466129,0.001,2822.8,2822.3,0.002]
[1769724466367,0.72169943,2822.8,2822.3,0.002]
[1769724467355,0.72069943,2822.8,2822.3,0.002]
[1769724470466,0.001,2822.7,2822.3,0.002]
[1769724472867,0.72069943,2822.8,2822.3,0.002]
[1769724473040,0.001,2822.7,2822.3,0.002]
[1769724474264,0.001,2822.6,2822.3,0.002]
[1769724474784,0.001,2822.5,2822.3,0.002]
[1769724475364,0.001,2822.5,2822.3,5.95910251]
[1769724480275,0.001,2822.6,2822.3,6.64359501]
[1769724485690,0.001,2822.6,2822.3,5.95910251]
[1769724491362,0.001,2822.4,2822.3,5.95910251]
[1769724491566,0.001,2822.6,2822.3,5.95910251]
[1769724491885,0.002,2822.6,2822.3,5.95910251]
[1769724493290,0.001,2822.5,2822.3,0.002]
[1769724497287,0.001,2822.6,2822.3,0.002]
[1769724497490,0.001,2822.5,2822.3,0.002]
[1769724499765,0.001,2822.5,2822.3,5.48892014]
[1769724502773,0.001,2822.6,2822.3,5.48892014]
[1769724502980,0.001,2822.4,2822.3,5.48892014]
[1769724505914,0.001,2822.4,2822.3,0.002]
[1769724515795,0.001,2822.4,2822.0,0.002]
[1769724515983,0.001,2822.3,2822.0,0.002]
[1769724516391,0.001,2822.2,2822.0,0.002]
[1769724517020,0.001,2822.2,2822.0,5.46982174]
[1769724518901,0.001,2822.2,2822.0,6.35571673]
[1769724520313,0.001,2822.2,2822.0,0.002]
[1769724522319,0.001,2822.2,2821.9,5.46782477]
[1769724522320,0.001,2822.2,2821.9,3.03e-06]
[1769724522500,5.3291555,2822.4,2821.5,0.88605266]
[1769724522821,5.3281555,2822.2,2821.5,0.88605266]
[1769724523120,5.3281555,2822.2,2821.4,5.46982174]
[1769724523323,0.001,2822.1,2821.4,5.46982174]
[1769724523490,0.001,2822.1,2821.4,6.35589847]
[1769724523797,0.001,2822.1,2821.4,5.46982174]
[1769724524002,1.03021701,2822.1,2821.4,5.46982174]
[1769724524205,1.03021701,2822.1,2821.4,6.35590458]
[1769724524589,1.03021701,2822.1,2821.4,5.46982174]
[1769724526095,1.03021701,2822.1,2821.7,0.002]
[1769724526300,1.91608242,2822.1,2821.7,0.002]
[1769724526502,0.72442379,2822.0,2821.7,0.002]
[1769724528187,0.001,2821.9,2821.7,0.002]
[1769724532827,0.88587347,2822.1,2821.7,0.002]
[1769724533123,5.3291555,2822.0,2821.5,0.002]
[1769724533294,0.6215029,2821.9,2821.5,0.002]
[1769724533697,0.001,2822.0,2821.5,0.002]
[1769724533914,0.88587347,2822.1,2821.5,0.002]
[1769724533915,5.3291555,2821.9,2821.5,0.002]
[1769724534119,5.3281555,2821.9,2821.5,0.001]
[1769724534423,5.3281555,2821.9,2821.4,0.002]
[1769724534601,6.74693428,2821.8,2821.3,0.002]
[1769724534803,5.08486118,2821.7,2821.3,0.002]
[1769724536731,0.88602211,2821.6,2821.3,0.002]
[1769724536930,6.2374249,2821.6,2820.9,0.002]
[1769724537125,5.35140279,2821.4,2820.9,0.002]
[1769724537722,5.35140279,2821.4,2820.7,0.002]
[1769724538228,0.97814886,2821.5,2820.7,5.55957739]
[1769724539136,0.88608492,2821.4,2820.9,0.002]
[1769724542832,6.23748771,2821.4,2820.9,0.002]
[1769724543021,1.03924676,2821.3,2820.9,0.002]
[1769724543718,6.23755052,2821.2,2820.6,0.002]
[1769724543917,5.35140279,2820.8,2820.0,0.002]
[1769724544146,5.35140279,2820.5,2819.6,0.002]
[1769724544349,1.15215804,2820.4,2819.6,0.002]
[1769724544742,1.15215804,2820.4,2819.6,0.88864716]
[1769724545148,1.15215804,2820.4,2819.6,0.002]
[1769724545149,6.50356083,2820.4,2819.6,0.002]
[1769724545357,0.742,2820.8,2819.6,6.44621314]
[1769724545547,5.35140279,2820.7,2819.6,6.44621314]
[1769724545952,0.88633624,2820.6,2819.6,6.44621314]
[1769724546126,5.35140279,2820.5,2819.6,6.44621314]
[1769724547230,5.35140279,2820.5,2819.6,0.002]
[1769724547952,5.35140279,2820.3,2819.8,0.001]
[1769724548125,5.35140279,2820.1,2819.8,0.001]
[1769724548752,5.35140279,2820.1,2819.6,3.04e-06]
[1769724550226,0.62378019,2820.2,2819.6,3.04e-06]
[1769724550227,1.51025768,2820.2,2819.6,5.55758043]
[1769724550429,0.88647749,2820.2,2819.6,5.55758043]
[1769724550827,0.88647749,2820.2,2819.8,0.002]
[1769724551038,0.88747749,2820.2,2819.8,0.002]
[1769724553359,0.88747749,2820.2,2819.8,0.001]
[1769724553540,0.97846832,2820.1,2819.8,0.001]
[1769724553853,0.97846832,2820.1,2819.4,0.002]
[1769724554058,0.97846832,2820.1,2819.4,0.00100709]
[1769724556030,0.88652482,2820.0,2819.4,0.00100709]
[1769724557357,6.23792761,2820.0,2819.4,0.00100709]
[1769724557554,1.07623794,2819.9,2819.5,5.55757739]
[1769724557868,0.88749032,2820.2,2819.5,5.55757739]
[1769724558065,6.23889311,2820.2,2819.4,0.00100709]
[1769724561856,5.35140279,2820.0,2819.4,0.00100709]
[1769724562055,5.35140279,2820.0,2819.1,0.002]
[1769724562256,5.35140279,2819.8,2819.1,0.002]
[1769724562569,0.88655626,2819.9,2819.1,0.002]
[1769724562570,5.97519869,2819.7,2819.1,0.002]
[1769724563167,5.97519869,2819.7,2819.6,0.001]
[1769724563358,5.97519869,2819.7,2819.1,0.00100202]
[1769724563671,0.6237959,2819.7,2819.4,0.001]
[1769724563868,0.88655626,2819.9,2819.4,0.001]
[1769724571488,0.88655626,2819.9,2819.4,5.01708383]
[1769724572068,0.88655626,2819.9,2819.4,0.001]
[1769724572772,6.04595982,2819.9,2819.4,0.001]
[1769724574061,6.04595982,2819.9,2819.1,5.01708585]
[1769724574259,0.95921849,2819.8,2819.1,5.01708585]
[1769724575880,0.88661914,2819.7,2819.1,5.16432948]
[1769724577878,3.54627489,2819.9,2819.1,6.05111858]
[1769724578768,3.54627489,2819.9,2819.1,5.16432948]
[1769724582783,3.54627489,2819.9,2819.1,6.05113134]
[1769724584296,0.88655626,2819.9,2819.1,6.05113134]
[1769724584484,0.88655626,2819.9,2819.3,5.16332746]
[1769724586694,0.88655626,2819.9,2819.3,5.16532746]
[1769724587069,0.001,2819.7,2819.3,5.16532746]
[1769724587471,0.001,2819.7,2819.3,0.002]
[1769724588874,0.001,2819.7,2819.3,5.16532746]
[1769724591508,0.001,2819.7,2819.3,0.002]
[1769724596403,0.001,2819.7,2819.3,4.88297816]
[1769724599412,0.001,2819.7,2819.3,5.29823947]
[1769724599604,0.001,2820.0,2819.5,4.88097816]
[1769724600389,0.743,2820.4,2819.3,1.30399358]
[1769724600390,3.54518555,2820.8,2819.7,4.88097816]
[1769724600584,0.8863184,2820.7,2819.7,4.88097816]
[1769724601488,5.28735495,2820.8,2819.9,4.88097816]
[1769724601688,1.23777598,2820.7,2819.9,4.88097816]
[1769724602608,3.54521927,2820.9,2819.9,4.88097816]
[1769724602809,0.88614773,2821.2,2819.9,4.88097816]
[1769724603002,1.62914773,2821.2,2819.9,4.88097816]
[1769724603198,6.91650268,2821.2,2819.9,4.88097816]
[1769724603404,8.32385903,2821.2,2820.1,4.88097816]
[1769724603599,8.32385903,2821.2,2820.2,5.76744011]
[1769724603600,5.28735495,2821.1,2820.2,5.76744011]
[1769724605735,0.88621056,2821.0,2820.2,5.76744011]
[1769724613329,0.001,2820.9,2820.2,5.76744011]
[1769724616228,0.001,2820.9,2820.2,4.88097816]
[1769724617228,0.001,2820.9,2820.2,5.76743841]
[1769724617427,0.001,2820.9,2820.2,6.69878907]
[1769724617609,0.001,2820.9,2820.2,5.81232882]
[1769724618630,0.001,2820.9,2820.2,6.69878994]
[1769724622411,0.001,2820.9,2820.3,4.88097816]
[1769724625046,0.001,2820.9,2820.3,5.76740166]
[1769724625413,0.001,2820.7,2820.3,5.76740166]
[1769724625613,0.001,2820.7,2820.3,4.88097816]
[1769724627141,0.001,2820.7,2820.2,6.0653387]
[1769724627442,0.001,2820.7,2820.2,5.13398804]
[1769724628820,0.001,2820.7,2820.3,0.88642704]
[1769724629055,0.001,2820.7,2820.2,6.02042615]
[1769724629451,0.001,2820.7,2820.2,5.13398804]
[1769724635969,0.001,2820.7,2820.2,6.02044957]
[1769724636631,0.001,2820.7,2820.2,5.13398804]
[1769724637152,0.001,2820.7,2820.2,6.02044871]
[1769724637326,0.001,2820.7,2820.3,4.67949694]
[1769724648271,0.001,2820.5,2820.3,4.67949694]
[1769724658693,0.001,2820.5,2820.0,0.88649977]
[1769724658997,0.001,2820.5,2820.2,4.79305157]
[1769724659168,0.001,2820.5,2820.1,0.88646929]
[1769724659169,0.001,2820.5,2820.0,5.67957464]
[1769724659775,0.001,2820.3,2820.0,5.67957464]
[1769724660097,0.001,2820.3,2820.1,0.92257993]
[1769724661700,0.001,2820.3,2819.8,4.79305157]
[1769724662003,5.77716879,2820.3,2819.5,0.88668203]
[1769724663865,5.77716879,2820.3,2819.3,0.8887193]
[1769724664066,5.77716879,2820.3,2819.4,0.88670674]
[1769724664268,4.88972656,2820.1,2819.4,0.88670674]
[1769724666291,5.7762248,2820.1,2819.3,0.002]
[1769724666495,5.7762248,2820.1,2819.4,0.88655196]
[1769724669498,5.7762248,2820.1,2819.5,0.88668203]
[1769724669799,6.82280995,2820.1,2819.4,1.77324245]
[1769724670896,1.04658515,2820.1,2819.5,4.79305157]
[1769724671072,0.88646358,2820.2,2819.5,5.67960353]
[1769724671274,0.88646358,2820.2,2819.6,0.88655196]
[1769724671595,4.89072656,2820.3,2819.5,1.77321434]
[1769724671797,5.73447176,2820.3,2819.5,1.77321434]
[1769724672100,0.001,2819.9,2819.6,0.002]
[1769724676785,0.001,2819.9,2819.7,0.88655196]
[1769724677483,0.001,2819.9,2819.6,0.002]
[1769724677815,0.001,2819.9,2819.7,0.88655196]
[1769724682824,0.001,2819.9,2819.6,0.002]
[1769724683524,0.001,2819.9,2819.6,0.88864695]
[1769724683986,0.001,2819.9,2819.6,0.002]
[1769724685311,0.001,2819.9,2819.6,0.88864926]
[1769724686018,0.001,2819.9,2819.6,0.002]
[1769724686517,0.88743205,2820.3,2819.8,4.74301697]
[1769724686813,0.88743205,2820.3,2819.7,0.88655196]
[1769724687211,4.46657396,2820.2,2819.4,0.88871078]
[1769724687387,0.88652482,2820.0,2819.4,0.88871078]
[1769724687584,11.53610514,2820.0,2819.4,0.002]
[1769724687816,4.46657396,2819.9,2819.4,0.002]
[1769724689511,0.8865877,2819.8,2819.4,0.002]
[1769724695122,0.8865877,2819.8,2819.6,0.002]
[1769724695333,0.51758265,2819.7,2819.4,0.002]
[1769724696399,1.40421347,2819.7,2819.4,0.002]
[1769724698724,0.51758265,2819.7,2819.4,0.002]
[1769724701727,1.40420564,2819.7,2819.4,0.002]
[1769724702407,0.51758265,2819.7,2819.4,0.002]
[1769724702606,1.40420619,2819.7,2819.4,0.002]
[1769724706530,1.40420619,2819.7,2819.6,0.002]
[1769724706837,1.40420619,2819.7,2819.4,0.002]
[1769724709417,0.88668203,2819.5,2819.0,0.00100607]
[1769724709617,5.43212922,2819.5,2819.0,0.00100607]
[1769724709800,0.98577353,2819.4,2819.0,0.00100607]
[1769724711714,0.88674493,2819.3,2819.0,0.00100607]
[1769724712240,5.43219212,2819.3,2818.6,0.002]
[1769724715043,0.88674493,2819.3,2818.7,4.67191601]
[1769724717047,5.71362228,2819.6,2818.7,4.67191601]
[1769724717236,0.92601231,2819.5,2818.7,4.67191601]
[1769724718127,0.92601231,2819.5,2818.8,0.002]
[1769724718325,0.001,2819.2,2818.8,0.002]
[1769724723146,4.8279717,2819.2,2818.8,0.001]
[1769724724524,4.8269717,2819.0,2818.5,0.002]
[1769724725342,6.18300636,2818.8,2818.2,0.002]
[1769724725552,4.8269717,2818.7,2817.9,0.88916186]
[1769724726543,0.88696516,2818.6,2817.9,5.89904617]
[1769724727253,0.88694845,2818.7,2818.0,4.56607358]
[1769724727558,0.88691103,2818.8,2818.0,4.56607358]
[1769724728765,3.54748789,2818.9,2818.0,5.4532236]
[1769724728967,1.00043303,2818.8,2818.0,5.4532236]
[1769724730069,4.8269717,2818.7,2817.9,0.44581073]
[1769724730266,6.18300636,2818.0,2817.2,4.56607358]
[1769724730468,4.8269717,2818.0,2817.2,4.56607358]
[1769724730636,1.3699049,2817.9,2817.2,4.56607358]
[1769724733344,1.3699049,2817.9,2817.0,4.56607358]
[1769724733641,6.1968766,2817.9,2817.0,4.56607358]
[1769724734265,4.8269717,2817.8,2817.0,4.56607358]
[1769724734962,0.88724846,2817.7,2817.0,4.56607358]
[1769724735278,5.71422016,2817.7,2816.8,4.56607358]
[1769724735571,5.71422016,2817.7,2816.8,4.5640756]
[1769724735572,0.5842838,2817.6,2816.8,4.5640756]
[1769724737082,0.88731144,2817.5,2816.8,4.5640756]
[1769724742165,0.88731144,2817.5,2816.7,0.002]
[1769724742373,1.37010861,2817.5,2816.8,4.56607358]
[1769724742546,1.37010861,2817.5,2817.0,0.002]
[1769724751684,1.37010861,2817.5,2817.0,4.57379807]
[1769724751891,0.88731144,2817.5,2817.0,4.57379807]
[1769724754589,0.001,2817.3,2817.0,4.57379807]
[1769724757196,0.88722723,2817.8,2817.1,4.50725461]
[1769724759170,3.54886791,2817.9,2817.1,5.39468886]
[1769724759367,3.99247325,2817.9,2817.1,4.50725461]
[1769724759698,3.99247325,2817.9,2817.1,5.39467844]
[1769724761300,3.99247325,2817.9,2817.1,4.50725461]
[1769724765699,3.99247325,2817.9,2817.1,5.39468146]
[1769724765900,3.99247325,2817.9,2817.2,0.002]
[1769724766204,0.001,2817.7,2817.2,4.50925461]
[1769724768700,0.88824846,2817.7,2817.2,4.50925461]
[1769724768907,0.88824846,2817.7,2817.2,0.002]
[1769724771702,5.59624653,2817.7,2817.2,0.002]
[1769724771884,0.96330832,2817.6,2817.2,0.002]
[1769724773306,1.85059299,2817.6,2817.2,0.002]
[1769724775422,4.37814199,2817.5,2816.4,0.887658]
[1769724775725,1.85059299,2817.6,2816.1,0.88774724]
[1769724775726,4.37814199,2817.0,2816.1,0.88774724]
[1769724776014,5.12114199,2817.0,2816.2,5.56491501]
[1769724776809,5.12114199,2817.0,2816.3,0.8876895]
[1769724777493,5.12114199,2817.0,2816.2,5.56489834]
[1769724777691,1.3996203,2816.9,2816.2,5.56489834]
[1769724778127,1.3996203,2816.9,2816.2,4.67719785]
[1769724778513,1.3996203,2816.9,2816.2,5.56491696]
[1769724779313,0.5121142,2816.9,2816.2,5.56491696]
[1769724779517,1.39962101,2816.9,2816.2,5.56491696]
[1769724780421,4.9060806,2816.8,2815.9,4.67719785]
[1769724781698,4.37814199,2816.4,2815.8,0.002]
[1769724781904,6.19417329,2816.2,2815.6,0.002]
[1769724782123,6.19417329,2816.2,2815.5,4.94423966]
[1769724782124,4.37814199,2816.1,2815.5,0.16904181]
[1769724782422,4.37814199,2815.8,2814.8,0.8881435]
[1769724782590,6.19417329,2815.6,2814.7,4.74507681]
[1769724782787,10.57231528,2815.6,2814.7,4.74507681]
[1769724782988,2.68901562,2816.0,2814.2,4.67719785]
[1769724782989,4.37814199,2815.3,2814.2,4.67719785]
[1769724783208,4.37814199,2815.3,2813.4,9.93361331]
[1769724783209,4.37814199,2815.1,2814.0,5.56559029]
[1769724783421,4.37814199,2814.8,2814.0,4.67719785]
[1769724783599,5.12214199,2814.8,2813.8,5.56565671]
[1769724783804,4.37814199,2814.7,2813.7,4.67719785]
[1769724784012,4.89035619,2814.6,2813.8,0.88846285]
[1769724784212,4.37814199,2814.6,2813.8,4.67719785]
[1769724784413,4.37814199,2814.5,2813.7,0.46771979]
[1769724784599,4.37814199,2814.5,2813.6,4.67719785]
[1769724784798,4.37814199,2814.5,2813.7,0.88850693]
[1769724785123,5.26621986,2815.1,2813.7,5.63358374]
[1769724785331,4.37814199,2814.8,2813.9,4.67719785]
[1769724785542,4.37814199,2814.8,2813.7,5.56570478]
[1769724785744,4.37814199,2814.5,2813.5,0.88854305]
[1769724785952,4.37814199,2814.5,2813.6,0.88853192]
[1769724786112,4.37814199,2814.2,2813.4,4.67719785]
[1769724786316,4.37814199,2813.7,2812.7,4.67719785]
[1769724786512,0.744,2813.9,2812.9,5.56593973]
[1769724786717,4.37814199,2813.8,2813.0,0.88872092]
[1769724787013,4.37814199,2813.8,2813.1,0.88869892]
[1769724787216,4.73788321,2814.0,2813.1,5.56587528]
[1769724787410,5.12237179,2813.9,2813.1,0.88867743]
[1769724788442,5.12237179,2813.9,2813.0,3.55490832]
[1769724788649,5.12237179,2813.9,2813.1,4.67719785]
[1769724789035,6.01081983,2813.9,2813.1,4.67719785]